fUST/lending_fUST_20240105
["ID","MTS","AMOUNT","RATE_DAILY","PERIOD"]
[310177101,1704390642022,-500.0,0.0003863,7]
[310177103,1704390642032,-500.0,0.0003863,7]
[310177105,1704390642042,-234.79234472,0.0003863,7]
[310177107,1704390642053,-500.0,0.0003863,7]
[310177109,1704390642065,-500.0,0.0003863,7]
[310177112,1704390642076,-500.0,0.0003863,7]
[310177114,1704390642086,-500.0,0.0003863,7]
[310177116,1704390642098,-500.0,0.0003863,7]
[310177118,1704390642109,-512.05962348,0.0003863,7]
[310177120,1704390642119,-260.47772452,0.0003863,7]
[310177123,1704390642131,-604.55351256,0.0003863,7]
[310177125,1704390642142,-500.0,0.0003863,7]
[310177127,1704390642152,-500.0,0.0003863,7]
[310177129,1704390642163,-193.75753222,0.0003863,5]
[310177131,1704390642174,-223.26616222,0.0003863,7]
[310177133,1704390642185,-500.0,0.0003863,7]
[310177136,1704390642197,-500.0,0.0003863,7]
[310177138,1704390642207,-516.93241572,0.0003863,7]
[310177140,1704390642218,-531.22656994,0.0003863,7]
[310177142,1704390642230,-409.23905883,0.0003863,7]
[310177144,1704390642242,-407.33396314,0.0003863,7]
[310177147,1704390642254,-671.4,0.0003863,7]
[310177149,1704390642266,-500.0,0.0003863,7]
[310177151,1704390642277,-500.0,0.0003863,7]
[310177153,1704390642289,-500.0,0.0003863,7]
[310177156,1704390642300,-500.0,0.0003863,7]
[310177158,1704390642311,-1014.23,0.0003863,7]
[310177160,1704390642322,-779.12,0.0003863,7]
[310177162,1704390642333,-500.0,0.0003863,7]
[310177163,1704390642343,-500.0,0.0003863,7]
[310177164,1704390642353,-500.0,0.0003863,7]
[310177165,1704390642363,-500.0,0.0003863,7]
[310177166,1704390642374,-500.0,0.0003863,7]
[310177167,1704390642384,-500.0,0.0003863,7]
[310177168,1704390642395,-500.0,0.0003863,7]
[310177169,1704390642406,-500.0,0.0003863,7]
[310177170,1704390642417,-775.88,0.0003863,7]
[310177171,1704390642428,-500.0,0.0003863,7]
[310177172,1704390642438,-500.0,0.0003863,7]
[310177173,1704390642449,-500.0,0.0003863,7]
[310177174,1704390642460,-512.51115803,0.0003863,7]
[310177175,1704390642470,-505.60017931,0.0003863,7]
[310177176,1704390642481,-500.0,0.0003863,7]
[310177177,1704390642491,-500.0,0.0003863,7]
[310177178,1704390642502,-500.0,0.0003863,7]
[310177179,1704390642513,-500.0,0.0003863,7]
[310177180,1704390642523,-2778.32,0.0003863,7]
[310177181,1704390642534,-500.0,0.0003863,7]
[310177182,1704390642545,-1263.33,0.0003863,7]
[310177183,1704390642556,-500.0,0.0003863,7]
[310177184,1704390642568,-500.0,0.0003863,7]
[310177185,1704390642578,-500.0,0.0003863,7]
[310177186,1704390642589,-607.78067208,0.0003863,7]
[310177187,1704390642600,-500.0,0.0003863,7]
[310177188,1704390642610,-504.88822825,0.0003863,7]
[310177189,1704390642621,-500.0,0.0003863,7]
[310177190,1704390642634,-500.0,0.0003863,7]
[310177191,1704390642644,-500.0,0.0003863,7]
[310177192,1704390642656,-504.90989519,0.0003863,7]
[310177193,1704390642666,-500.0,0.0003863,7]
[310177194,1704390642677,-500.0,0.0003863,7]
[310177195,1704390642688,-832.44,0.0003863,7]
[310177196,1704390642700,-550.0,0.0003863,7]
[310177198,1704390642711,-605.24,0.0003863,7]
[310177201,1704390642723,-500.0,0.0003863,7]
[310177203,1704390642733,-500.0,0.0003863,7]
[310177205,1704390642742,-500.0,0.0003863,7]
[310177208,1704390642752,-500.0,0.0003863,7]
[310177210,1704390642762,-624.0,0.0003863,7]
[310177213,1704390642771,-500.0,0.0003863,7]
[310177238,1704390642907,-182.10087568,0.0003863,7]
[310177241,1704390642922,-500.0,0.0003863,7]
[310177243,1704390642933,-500.0,0.0003863,7]
[310177246,1704390642942,-504.39400687,0.0003863,7]
[310177249,1704390642952,-781.28,0.0003863,7]
[310177252,1704390642962,-500.0,0.0003863,7]
[310177255,1704390642971,-500.0,0.0003863,7]
[310177258,1704390642981,-500.0,0.0003863,7]
[310177261,1704390642990,-500.0,0.0003863,7]
[310177264,1704390642999,-500.0,0.0003863,7]
[310177267,1704390643010,-500.0,0.0003863,7]
[310177270,1704390643019,-1467.51,0.0003863,7]
[310177273,1704390643028,-514.66008108,0.0003863,7]
[310177276,1704390643038,-500.0,0.0003863,7]
[310177279,1704390643047,-500.0,0.0003863,7]
[310177282,1704390643056,-500.0,0.0003863,7]
[310177285,1704390643065,-3212.75,0.0003863,7]
[310177288,1704390643074,-500.0,0.0003863,7]
[310177291,1704390643084,-500.0,0.0003863,7]
[310177294,1704390643093,-274.27195752,0.0003863,7]
[310177297,1704390643102,-500.0,0.0003863,7]
[310177300,1704390643112,-500.0,0.0003863,7]
[310177302,1704390643121,-500.0,0.0003863,7]
[310177304,1704390643133,-500.0,0.0003863,7]
[310177306,1704390643143,-500.0,0.0003863,7]
[310177308,1704390643152,-500.0,0.0003863,7]
[310177310,1704390643162,-716.96,0.0003863,7]
[310177312,1704390643171,-571.46,0.0003863,7]
[310177314,1704390643180,-500.0,0.0003863,7]
[310177316,1704390643190,-687.09,0.0003863,7]
[310177318,1704390643199,-500.0,0.0003863,7]
[310177319,1704390643208,-530.19501161,0.0003863,7]
[310177321,1704390643217,-500.0,0.0003863,7]
[310177323,1704390643227,-638.46,0.0003863,7]
[310177325,1704390643237,-572.89415286,0.0003863,7]
[310177328,1704390643246,-10003.55,0.0003863,7]
[310177329,1704390643256,-500.0,0.0003863,7]
[310177331,1704390643265,-197.34080759,0.0003863,7]
[310177333,1704390643274,-500.0,0.0003863,7]
[310177335,1704390643283,-645.09,0.0003863,7]
[310177337,1704390643292,-500.0,0.0003863,7]
[310177339,1704390643301,-500.0,0.0003863,7]
[310177341,1704390643311,-500.0,0.0003863,7]
[310177343,1704390643320,-500.0,0.0003863,7]
[310177345,1704390643329,-500.0,0.0003863,7]
[310177347,1704390643338,-500.0,0.0003863,7]
[310177349,1704390643347,-500.0,0.0003863,7]
[310177351,1704390643356,-500.0,0.0003863,7]
[310177353,1704390643366,-500.0,0.0003863,7]
[310177355,1704390643375,-500.0,0.0003863,7]
[310177357,1704390643384,-661.79,0.0003863,7]
[310177359,1704390643394,-500.0,0.0003863,7]
[310177361,1704390643404,-500.0,0.0003863,7]
[310177363,1704390643413,-500.0,0.0003863,7]
[310177365,1704390643423,-533.64488153,0.0003863,7]
[310177367,1704390643433,-500.0,0.0003863,7]
[310177369,1704390643442,-500.0,0.0003863,7]
[310177371,1704390643452,-500.0,0.0003863,7]
[310177373,1704390643461,-500.0,0.0003863,7]
[310177375,1704390643470,-500.0,0.0003863,7]
[310177377,1704390643480,-23375.12,0.0003863,7]
[310177379,1704390643489,-3126.84,0.0003863,7]
[310177381,1704390643499,-511.93800855,0.0003863,7]
[310177383,1704390643508,-6537.52,0.0003863,7]
[310177385,1704390643517,-500.0,0.0003863,7]
[310177387,1704390643526,-1023.36,0.0003863,7]
[310177389,1704390643535,-500.0,0.0003863,7]
[310177391,1704390643545,-500.0,0.0003863,7]
[310177393,1704390643555,-500.0,0.0003863,7]
[310177395,1704390643565,-500.0,0.0003863,7]
[310177397,1704390643575,-2021.56,0.0003863,7]
[310177399,1704390643585,-500.0,0.0003863,7]
[310177401,1704390643594,-500.0,0.0003863,7]
[310177403,1704390643603,-689.43,0.0003863,7]
[310177404,1704390643611,-500.0,0.0003863,7]
[310177406,1704390643622,-3287.28,0.0003863,7]
[310177409,1704390643632,-500.0,0.0003863,7]
[310177410,1704390643642,-500.0,0.0003863,7]
[310177412,1704390643652,-500.0,0.0003863,7]
[310177414,1704390643662,-5962.16,0.0003863,7]
[310177416,1704390643671,-1310.53,0.0003863,7]
[310177418,1704390643681,-563.33939709,0.0003863,7]
[310177421,1704390643691,-500.0,0.0003863,7]
[310177422,1704390643700,-500.0,0.0003863,7]
[310177424,1704390643709,-409.68093324,0.0003863,7]
[310177427,1704390643719,-500.0,0.0003863,7]
[310177429,1704390643728,-500.0,0.0003863,7]
[310177431,1704390643737,-324.47795892,0.0003863,7]
[310177433,1704390643747,-500.0,0.0003863,7]
[310177434,1704390643756,-500.0,0.0003863,7]
[310177436,1704390643765,-500.0,0.0003863,7]
[310177438,1704390643774,-500.0,0.0003863,7]
[310177440,1704390643784,-377.15772953,0.0003863,7]
[310177442,1704390643793,-500.0,0.0003863,7]
[310177444,1704390643803,-1405.61,0.0003863,7]
[310177446,1704390643812,-500.0,0.0003863,7]
[310177448,1704390643821,-500.0,0.0003863,7]
[310177450,1704390643830,-1064.58,0.0003863,7]
[310177452,1704390643840,-500.0,0.0003863,7]
[310177454,1704390643850,-500.0,0.0003863,2]
[310177456,1704390643859,-500.0,0.0003863,7]
[310177458,1704390643869,-500.0,0.0003863,7]
[310177460,1704390643878,-737.27,0.0003863,7]
[310177463,1704390643888,-500.0,0.0003863,7]
[310177464,1704390643897,-500.0,0.0003863,7]
[310177466,1704390643908,-629.26352752,0.0003863,7]
[310177468,1704390643917,-3218.37,0.0003863,7]
[310177470,1704390643927,-2249.29,0.0003863,7]
[310177473,1704390643937,-500.0,0.0003863,7]
[310177474,1704390643946,-500.0,0.0003863,7]
[310177476,1704390643955,-781.73,0.0003863,7]
[310177478,1704390643965,-151.0,0.0003863,2]
[310177480,1704390643974,-151.0,0.0003863,2]
[310177482,1704390643984,-225.350694,0.0003863,2]
[310177484,1704390643993,-225.350694,0.0003863,2]
[310177486,1704390644003,-225.350694,0.0003863,2]
[310177488,1704390644011,-225.350694,0.0003863,2]
[310177490,1704390644021,-500.0,0.00038904,7]
[310177492,1704390644030,-500.0,0.00038904,7]
[310177493,1704390644039,-500.0,0.00038904,7]
[310177496,1704390644049,-500.0,0.00038904,7]
[310177498,1704390644058,-500.0,0.00038904,7]
[310177499,1704390644067,-467.32895842,0.00038904,7]
[310177501,1704390644076,-500.0,0.00038904,7]
[310177503,1704390644086,-460.58336195,0.00038904,7]
[310177506,1704390644095,-500.0,0.00038904,7]
[310177507,1704390644105,-500.0,0.00038904,7]
[310177510,1704390644116,-500.0,0.00038904,7]
[310177512,1704390644129,-500.0,0.00038904,7]
[310177514,1704390644138,-500.0,0.00038904,7]
[310177516,1704390644147,-516.28843698,0.00038904,7]
[310177517,1704390644157,-500.0,0.00038904,7]
[310177520,1704390644167,-500.0,0.00038904,7]
[310177522,1704390644177,-500.0,0.00038904,7]
[310177524,1704390644186,-500.0,0.00038904,7]
[310177525,1704390644195,-500.0,0.00038904,7]
[310177527,1704390644204,-2189.53,0.00038904,7]
[310177529,1704390644213,-500.0,0.00038904,7]
[310177532,1704390644223,-501.93397439,0.00038904,7]
[310177534,1704390644232,-500.0,0.00038904,7]
[310177536,1704390644242,-500.0,0.00038904,7]
[310177538,1704390644251,-712.1,0.00038904,7]
[310177539,1704390644260,-536.05891728,0.00038904,7]
[310177541,1704390644269,-500.0,0.00038904,7]
[310177543,1704390644278,-500.0,0.00038904,7]
[310177544,1704390644287,-893.18,0.00038904,7]
[310177545,1704390644296,-500.0,0.00038904,7]
[310177546,1704390644305,-500.0,0.00038904,2]
[310177547,1704390644314,-807.53,0.00038904,7]
[310177548,1704390644323,-500.0,0.00038904,7]
[310177550,1704390644332,-500.0,0.00038904,7]
[310177552,1704390644342,-500.0,0.00038904,7]
[310177554,1704390644354,-1878.36,0.00038904,7]
[310177556,1704390644364,-500.0,0.00038904,7]
[310177558,1704390644373,-1038.7,0.00038904,7]
[310177559,1704390644383,-500.0,0.00038904,7]
[310177561,1704390644394,-500.0,0.00038904,7]
[310177564,1704390644404,-500.0,0.00038904,7]
[310177565,1704390644413,-500.0,0.00038904,7]
[310177567,1704390644422,-500.0,0.00038904,2]
[310177569,1704390644432,-500.0,0.00038904,7]
[310177572,1704390644441,-500.0,0.00038904,7]
[310177574,1704390644451,-500.0,0.00038904,7]
[310177576,1704390644460,-500.0,0.00038904,7]
[310177578,1704390644470,-500.0,0.00038904,7]
[310177579,1704390644479,-500.0,0.00038904,7]
[310177582,1704390644489,-500.0,0.00038904,7]
[310177583,1704390644499,-500.0,0.00038904,7]
[310177586,1704390644508,-500.0,0.00038904,7]
[310177588,1704390644517,-671.4,0.00038904,7]
[310177590,1704390644527,-500.0,0.00038904,7]
[310177592,1704390644536,-500.0,0.00038904,7]
[310177594,1704390644547,-500.0,0.00038904,7]
[310177595,1704390644557,-1014.23,0.00038904,7]
[310177597,1704390644566,-779.12,0.00038904,7]
[310177599,1704390644576,-500.0,0.00038904,7]
[310177601,1704390644585,-500.0,0.00038904,7]
[310177603,1704390644595,-500.10326256,0.00038904,7]
[310177604,1704390644605,-500.0,0.00038904,7]
[310177606,1704390644614,-500.0,0.00038904,7]
[310177608,1704390644623,-399.84214994,0.00038904,7]
[310177610,1704390644633,-500.0,0.00038904,7]
[310177612,1704390644642,-500.0,0.00038904,7]
[310177614,1704390644652,-775.88,0.00038904,7]
[310177616,1704390644662,-155.82739453,0.00038904,7]
[310177618,1704390644671,-500.0,0.00038904,7]
[310177620,1704390644680,-564.95404721,0.00038904,7]
[310177622,1704390644689,-550.79041391,0.00038904,7]
[310177624,1704390644700,-500.0,0.00038904,7]
[310177626,1704390644711,-500.0,0.00038904,7]
[310177628,1704390644721,-500.0,0.00038904,7]
[310177630,1704390644730,-2778.32,0.00038904,7]
[310177632,1704390644739,-500.0,0.00038904,7]
[310177634,1704390644749,-1263.33,0.00038904,7]
[310177636,1704390644759,-500.0,0.00038904,7]
[310177638,1704390644768,-515.12129231,0.00038904,7]
[310177640,1704390644778,-500.0,0.00038904,7]
[310177642,1704390644787,-500.0,0.00038904,7]
[310177644,1704390644796,-500.0,0.00038904,7]
[310177646,1704390644806,-461.91547337,0.00038904,7]
[310177648,1704390644815,-500.0,0.00038904,7]
[310177650,1704390644825,-832.44,0.00038904,7]
[310177652,1704390644834,-605.24,0.00038904,7]
[310177655,1704390644844,-500.0,0.00038904,7]
[310177657,1704390644853,-500.0,0.00038904,7]
[310177659,1704390644863,-500.0,0.00038904,7]
[310177661,1704390644872,-624.0,0.00038904,7]
[310177663,1704390644882,-500.0,0.00038904,7]
[310177665,1704390644891,-500.0,0.00038904,7]
[310177667,1704390644902,-500.0,0.00038904,7]
[310177669,1704390644912,-781.28,0.00038904,7]
[310177671,1704390644921,-500.0,0.00038904,7]
[310177673,1704390644930,-500.0,0.00038904,7]
[310177675,1704390644939,-500.0,0.00038904,7]
[310177677,1704390644949,-1467.51,0.00038904,7]
[310177679,1704390644958,-500.0,0.00038904,7]
[310177680,1704390644967,-500.0,0.00038904,7]
[310177683,1704390644977,-500.0,0.00038904,7]
[310177684,1704390644986,-3212.75,0.00038904,7]
[310177687,1704390644995,-500.0,0.00038904,7]
[310177688,1704390645004,-500.0,0.00038904,7]
[310177691,1704390645013,-500.0,0.00038904,7]
[310177692,1704390645023,-500.0,0.00038904,7]
[310177695,1704390645033,-500.0,0.00038904,7]
[310177697,1704390645042,-440.20682695,0.00038904,7]
[310177698,1704390645051,-500.0,0.00038904,7]
[310177701,1704390645061,-716.96,0.00038904,7]
[310177703,1704390645071,-571.46,0.00038904,7]
[310177705,1704390645080,-500.0,0.00038904,7]
[310177706,1704390645090,-687.09,0.00038904,7]
[310177708,1704390645100,-500.0,0.00038904,7]
[310177711,1704390645110,-500.0,0.00038904,7]
[310177713,1704390645120,-638.46,0.00038904,7]
[310177715,1704390645131,-10003.55,0.00038904,7]
[310177717,1704390645140,-500.0,0.00038904,7]
[310177719,1704390645150,-500.0,0.00038904,7]
[310177721,1704390645160,-645.09,0.00038904,7]
[310177723,1704390645169,-500.0,0.00038904,7]
[310177725,1704390645178,-192.02021402,0.00038904,7]
[310177727,1704390645188,-500.0,0.00038904,7]
[310177729,1704390645197,-500.0,0.00038904,7]
[310177731,1704390645206,-500.0,0.00038904,7]
[310177733,1704390645215,-500.0,0.00038904,7]
[310177735,1704390645225,-500.0,0.00038904,7]
[310177737,1704390645234,-500.0,0.00038904,7]
[310177739,1704390645243,-661.79,0.00038904,7]
[310177741,1704390645251,-500.0,0.00038904,7]
[310177743,1704390645260,-500.0,0.00038904,7]
[310177745,1704390645269,-500.0,0.00038904,7]
[310177747,1704390645278,-500.0,0.00038904,7]
[310177749,1704390645287,-500.0,0.00038904,7]
[310177751,1704390645297,-500.0,0.00038904,7]
[310177753,1704390645306,-500.0,0.00038904,7]
[310177754,1704390645316,-23375.12,0.00038904,7]
[310177756,1704390645326,-3126.84,0.00038904,7]
[310177758,1704390645335,-6537.52,0.00038904,7]
[310177760,1704390645345,-500.0,0.00038904,7]
[310177762,1704390645354,-1023.36,0.00038904,7]
[310177764,1704390645364,-500.0,0.00038904,7]
[310177766,1704390645373,-500.0,0.00038904,7]
[310177768,1704390645382,-500.0,0.00038904,7]
[310177770,1704390645391,-2021.56,0.00038904,7]
[310177772,1704390645400,-500.0,0.00038904,7]
[310177774,1704390645410,-689.43,0.00038904,7]
[310177776,1704390645419,-500.0,0.00038904,7]
[310177778,1704390645428,-3287.28,0.00038904,7]
[310177780,1704390645438,-500.0,0.00038904,7]
[310177782,1704390645447,-500.0,0.00038904,7]
[310177784,1704390645457,-500.0,0.00038904,7]
[310177786,1704390645468,-5962.16,0.00038904,7]
[310177788,1704390645477,-1310.53,0.00038904,7]
[310177790,1704390645486,-500.0,0.00038904,7]
[310177792,1704390645496,-500.0,0.00038904,7]
[310177794,1704390645505,-500.0,0.00038904,7]
[310177796,1704390645515,-500.0,0.00038904,7]
[310177798,1704390645525,-500.0,0.00038904,7]
[310177800,1704390645534,-507.73897378,0.00038904,7]
[310177802,1704390645544,-500.0,0.00038904,7]
[310177804,1704390645553,-500.0,0.00038904,7]
[310177806,1704390645563,-1405.61,0.00038904,7]
[310177808,1704390645572,-500.0,0.00038904,7]
[310177810,1704390645582,-500.0,0.00038904,7]
[310177812,1704390645591,-1064.58,0.00038904,7]
[310177814,1704390645600,-500.0,0.00038904,7]
[310177816,1704390645609,-500.0,0.00038904,2]
[310177818,1704390645619,-500.0,0.00038904,7]
[310177820,1704390645629,-289.35176777,0.00038904,7]
[310177821,1704390645638,-737.27,0.00038904,7]
[310177823,1704390645651,-500.0,0.00038904,7]
[310177825,1704390645661,-3218.37,0.00038904,7]
[310177828,1704390645671,-2249.29,0.00038904,7]
[310177830,1704390645680,-500.0,0.00038904,7]
[310177832,1704390645690,-500.0,0.00038904,7]
[310177834,1704390645700,-151.0,0.00038904,2]
[310177836,1704390645709,-151.0,0.00038904,2]
[310177838,1704390645719,-151.0,0.00038904,2]
[310177839,1704390645729,-225.350694,0.00038904,2]
[310177841,1704390645738,-225.350694,0.00038904,2]
[310177843,1704390645748,-1000.0,0.00039,39]
[310177847,1704390645758,-19691.33425249,0.00039,2]
[310177860,1704390645852,-154.7215013,0.00039,4]
[310177864,1704390645875,-500.0,0.00039,7]
[310177865,1704390645885,-225.350694,0.00039,2]
[310177867,1704390645895,-225.350694,0.00039,2]
[310177869,1704390645904,-151.0,0.00039148,2]
[310177871,1704390645914,-150.0,0.00039148,60]
[310177873,1704390645924,-13850.0,0.00039148,60]
[310177876,1704390645933,-168.0,0.00039148,60]
[310177878,1704390645943,-298.0,0.00039148,7]
[310177880,1704390645953,-150.0,0.00039158,60]
[310177882,1704390645963,-13850.0,0.00039158,60]
[310177884,1704390645975,-298.0,0.00039158,7]
[310177886,1704390645985,-168.0,0.00039158,60]
[310177888,1704390645995,-150.0,0.00039168,60]
[310177889,1704390646004,-259.17,0.00039168,60]
[310177891,1704390646014,-180.83,0.00039168,60]
[310177893,1704390646023,-13850.0,0.00039168,60]
[310177895,1704390646033,-298.0,0.00039168,7]
[310177898,1704390646042,-168.0,0.00039168,60]
[310177900,1704390646052,-500.0,0.00039178,7]
[310177901,1704390646063,-500.0,0.00039178,7]
[310177904,1704390646072,-500.0,0.00039178,7]
[310177906,1704390646081,-500.0,0.00039178,7]
[310177908,1704390646091,-500.0,0.00039178,7]
[310177910,1704390646101,-500.0,0.00039178,7]
[310177912,1704390646110,-500.0,0.00039178,7]
[310177914,1704390646119,-531.16222425,0.00039178,7]
[310177916,1704390646130,-240.11809134,0.00039178,7]
[310177917,1704390646139,-500.0,0.00039178,7]
[310177919,1704390646148,-500.0,0.00039178,7]
[310177921,1704390646158,-500.0,0.00039178,7]
[310177923,1704390646168,-500.0,0.00039178,7]
[310177925,1704390646177,-504.9345272,0.00039178,7]
[310177927,1704390646186,-500.0,0.00039178,7]
[310177929,1704390646196,-2189.53,0.00039178,7]
[310177931,1704390646205,-500.0,0.00039178,7]
[310177933,1704390646214,-500.0,0.00039178,7]
[310177936,1704390646224,-712.1,0.00039178,7]
[310177938,1704390646233,-500.0,0.00039178,7]
[310177940,1704390646243,-578.51849582,0.00039178,7]
[310177941,1704390646252,-893.18,0.00039178,7]
[310177943,1704390646261,-500.0,0.00039178,2]
[310177945,1704390646270,-807.53,0.00039178,7]
[310177947,1704390646280,-163.22650141,0.00039178,7]
[310177949,1704390646289,-500.0,0.00039178,7]
[310177951,1704390646299,-1878.36,0.00039178,7]
[310177954,1704390646308,-500.0,0.00039178,7]
[310177956,1704390646318,-1038.7,0.00039178,7]
[310177958,1704390646327,-500.0,0.00039178,7]
[310177960,1704390646336,-500.0,0.00039178,7]
[310177961,1704390646345,-500.0,0.00039178,7]
[310177964,1704390646355,-500.0,0.00039178,2]
[310177966,1704390646364,-500.0,0.00039178,7]
[310177967,1704390646373,-500.0,0.00039178,7]
[310177969,1704390646383,-500.0,0.00039178,7]
[310177971,1704390646392,-500.0,0.00039178,7]
[310177974,1704390646401,-581.62094742,0.00039178,7]
[310177976,1704390646411,-500.0,0.00039178,7]
[310177977,1704390646420,-671.4,0.00039178,7]
[310177979,1704390646430,-500.0,0.00039178,7]
[310177982,1704390646439,-500.0,0.00039178,7]
[310177984,1704390646449,-1014.23,0.00039178,7]
[310177986,1704390646459,-779.12,0.00039178,7]
[310177988,1704390646468,-500.0,0.00039178,7]
[310177990,1704390646478,-500.0,0.00039178,7]
[310177992,1704390646487,-508.70862764,0.00039178,7]
[310177994,1704390646496,-500.0,0.00039178,7]
[310177996,1704390646506,-508.96262716,0.00039178,7]
[310177997,1704390646515,-775.88,0.00039178,7]
[310178000,1704390646526,-516.67528171,0.00039178,7]
[310178002,1704390646535,-500.0,0.00039178,7]
[310178004,1704390646546,-500.0,0.00039178,7]
[310178006,1704390646555,-2778.32,0.00039178,7]
[310178008,1704390646565,-492.39349911,0.00039178,7]
[310178009,1704390646574,-1263.33,0.00039178,7]
[310178011,1704390646583,-500.0,0.00039178,7]
[310178013,1704390646593,-500.0,0.00039178,7]
[310178016,1704390646603,-500.0,0.00039178,7]
[310178018,1704390646612,-500.0,0.00039178,7]
[310178019,1704390646624,-500.0,0.00039178,7]
[310178022,1704390646634,-832.44,0.00039178,7]
[310178024,1704390646643,-605.24,0.00039178,7]
[310178025,1704390646653,-500.0,0.00039178,7]
[310178027,1704390646663,-624.0,0.00039178,7]
[310178029,1704390646672,-500.0,0.00039178,7]
[310178031,1704390646681,-500.0,0.00039178,7]
[310178033,1704390646690,-500.0,0.00039178,7]
[310178035,1704390646700,-500.0,0.00039178,7]
[310178037,1704390646709,-781.28,0.00039178,7]
[310178039,1704390646718,-500.0,0.00039178,7]
[310178041,1704390646728,-1467.51,0.00039178,7]
[310178043,1704390646737,-500.0,0.00039178,7]
[310178045,1704390646747,-500.0,0.00039178,7]
[310178047,1704390646756,-500.0,0.00039178,7]
[310178049,1704390646765,-3212.75,0.00039178,7]
[310178051,1704390646774,-500.0,0.00039178,7]
[310178053,1704390646784,-500.0,0.00039178,7]
[310178055,1704390646793,-500.0,0.00039178,7]
[310178057,1704390646802,-500.0,0.00039178,7]
[310178059,1704390646812,-588.30468801,0.00039178,7]
[310178061,1704390646821,-716.96,0.00039178,7]
[310178063,1704390646830,-571.46,0.00039178,7]
[310178065,1704390646840,-606.17498984,0.00039178,7]
[310178067,1704390646849,-500.0,0.00039178,7]
[310178069,1704390646858,-687.09,0.00039178,7]
[310178071,1704390646868,-511.28786546,0.00039178,7]
[310178073,1704390646877,-638.46,0.00039178,7]
[310178075,1704390646886,-10003.55,0.00039178,7]
[310178077,1704390646896,-500.0,0.00039178,7]
[310178079,1704390646905,-645.09,0.00039178,7]
[310178081,1704390646914,-500.0,0.00039178,7]
[310178083,1704390646924,-523.25766264,0.00039178,7]
[310178085,1704390646933,-500.0,0.00039178,7]
[310178087,1704390646942,-500.0,0.00039178,7]
[310178089,1704390646951,-500.0,0.00039178,7]
[310178091,1704390646960,-500.0,0.00039178,7]
[310178093,1704390646969,-500.0,0.00039178,7]
[310178095,1704390646978,-661.79,0.00039178,7]
[310178097,1704390646987,-500.0,0.00039178,7]
[310178099,1704390646996,-500.0,0.00039178,7]
[310178101,1704390647005,-500.0,0.00039178,7]
[310178103,1704390647015,-573.66885258,0.00039178,7]
[310178105,1704390647024,-500.0,0.00039178,7]
[310178107,1704390647033,-344.95871279,0.00039178,7]
[310178109,1704390647042,-500.0,0.00039178,7]
[310178111,1704390647051,-23375.12,0.00039178,7]
[310178113,1704390647061,-3126.84,0.00039178,7]
[310178115,1704390647070,-6537.52,0.00039178,7]
[310178117,1704390647079,-500.0,0.00039178,7]
[310178119,1704390647088,-1023.36,0.00039178,7]